bitfinex-derivatives/quotes_ETHF0:USTF0_20250421
["timestamp","ask_amount","ask_price","bid_price","bid_amount"]
[1745258204138,1.26757,1577.7,1577.5,40.8]
[1745258204343,1.26746,1577.8,1577.7,1.2675]
[1745258204645,1.26738,1577.9,1577.8,1.26742]
[1745258204844,0.00948497,1578.1,1577.6,11.40177]
[1745258205153,1.27674497,1578.1,1577.9,1.26733]
[1745258205351,2.99344497,1578.1,1577.9,1.26733]
[1745258205552,1.26727,1578.0,1577.9,1.26733]
[1745258205850,1.27669497,1578.1,1577.9,1.26729]
[1745258206152,1.27669497,1578.1,1577.9,7.41329]
[1745258206851,0.00948497,1578.1,1578.0,1.26727]
[1745258207043,0.00948497,1578.1,1577.9,7.41328]
[1745258207044,1.27672497,1578.1,1577.9,7.41328]
[1745258207655,1.27672497,1578.1,1578.0,1.26727]
[1745258207846,0.00948497,1578.1,1577.9,7.4133]
[1745258208046,1.27673497,1578.1,1577.9,7.4133]
[1745258208352,1.27673497,1578.1,1577.9,6.146]
[1745258208656,1.26727,1578.0,1577.9,7.4133]
[1745258208845,0.00948497,1578.1,1578.0,1.26727]
[1745258209046,1.27672497,1578.1,1577.9,7.41331]
[1745258209240,1.27672497,1578.1,1578.0,6.146]
[1745258209946,2.95302497,1578.1,1578.0,6.146]
[1745258210147,1.26735,1577.9,1577.8,1.3203]
[1745258210349,4.84448,1578.0,1577.7,11.90607]
[1745258210552,1.26743,1577.8,1577.7,10.6386]
[1745258210754,1.26743,1577.8,1577.7,9.3538]
[1745258211140,1.26757,1577.7,1577.5,45.818]
[1745258211345,2.94387,1577.7,1577.6,1.26759]
[1745258211548,2.59979,1577.8,1577.6,1.26759]
[1745258211749,4.27609,1577.8,1577.6,1.26759]
[1745258212147,1.3323,1577.8,1577.7,1.26751]
[1745258213050,1.26742,1577.9,1577.8,1.26743]
[1745258213355,3.2078,1578.0,1577.8,1.26743]
[1745258213356,1.26734,1578.0,1577.8,1.26743]
[1745258213551,1.26734,1578.0,1577.7,4.37075]
[1745258213552,1.26743,1577.8,1577.7,4.37075]
[1745258213748,1.26799,1577.1,1577.0,0.02502]
[1745258214149,1.26799,1577.1,1577.0,6.17102]
[1745258215051,2.98099,1577.1,1577.0,6.17102]
[1745258216255,1.26831,1576.7,1576.6,3.01352474]
[1745258216458,1.2684,1576.6,1576.5,14.21539633]
[1745258216656,1.26848,1576.5,1576.4,15.60267791]
[1745258216962,6.398453,1576.5,1576.4,13.47287791]
[1745258217153,19.90221582,1576.5,1576.4,11.74880791]
[1745258217355,19.90220125,1576.5,1576.4,7.33021791]
[1745258217553,1.26872,1576.2,1576.1,24.94728949]
[1745258217857,4.47652,1576.2,1576.1,24.94728949]
[1745258218053,14.49652,1576.2,1576.1,24.94728949]
[1745258218256,1.26936,1575.4,1575.3,3.2078]
[1745258218554,1.26952,1575.2,1575.1,33.26305266]
[1745258218767,0.00951596,1575.5,1575.2,6.3448]
[1745258219061,0.00951596,1575.5,1575.3,1.26941]
[1745258219362,0.00951596,1575.5,1575.4,35.4580125]
[1745258219556,0.00951596,1575.5,1575.4,46.2799725]
[1745258219860,5.86814,1576.0,1575.4,55.0306125]
[1745258220156,4.5992,1576.0,1575.5,8.0045]
[1745258220354,1.26918,1575.7,1575.5,8.0045]
[1745258220661,3.2078,1575.8,1575.6,6.3448]
[1745258221153,1.2692,1575.6,1575.5,6.15551596]
[1745258221462,4.477,1575.6,1575.5,6.15551596]
[1745258221659,1.26915,1575.7,1575.5,14.16001596]
[1745258221861,1.26915,1575.7,1575.6,6.3448]
[1745258222853,1.2691,1575.8,1575.6,6.3448]
[1745258223054,0.00951596,1575.9,1575.7,8.1254]
[1745258223259,0.00951596,1575.9,1575.5,6.15551596]
[1745258223260,1.2692,1575.6,1575.5,6.15551596]
[1745258223553,3.2078,1575.8,1575.5,15.55017596]
[1745258223756,3.2078,1575.8,1575.6,6.3448]
[1745258223954,0.00951596,1575.9,1575.7,1.7806]
[1745258224161,0.00951596,1575.9,1575.8,1.26904]
[1745258224363,0.00951596,1575.9,1575.8,7.61384]
[1745258224961,0.00951596,1575.9,1575.8,12.61384]
[1745258225853,4.47659,1576.2,1575.8,11.3448]
[1745258226058,3.2078,1576.2,1576.1,1.2688]
[1745258226258,4.13849369,1576.3,1576.2,1.26872]
[1745258226461,4.13849369,1576.3,1575.7,6.146]
[1745258226462,3.1718,1576.2,1575.7,6.146]
[1745258226763,1.26904,1575.8,1575.7,14.3177]
[1745258226965,4.47684,1575.8,1575.7,6.146]
[1745258227152,1.2692,1575.6,1575.5,0.00951596]
[1745258227352,1.2692,1575.6,1575.2,3.2078]
[1745258227353,1.26944,1575.3,1575.2,3.2078]
[1745258227552,1.3317,1575.7,1575.3,6.3448]
[1745258227753,1.26927,1575.6,1575.4,1.26935]
[1745258227963,1.26927,1575.6,1575.5,1.8269]
[1745258228262,3.2078,1575.8,1575.6,1.26918]
[1745258228465,1.26901,1575.9,1575.7,2.94762]
[1745258228660,1.26904,1575.8,1575.7,9.29242]
[1745258228865,1.26902,1575.9,1575.8,6.3448]
[1745258231262,3.2078,1576.0,1575.8,6.3448]
[1745258231263,4.47674,1576.0,1575.8,6.3448]
[1745258231568,0.00951596,1576.1,1576.0,1.26888]
[1745258231768,0.00951596,1576.1,1576.0,2.93448]
[1745258231971,0.00951596,1576.1,1576.0,9.27928]
[1745258232171,0.00951596,1576.1,1576.0,15.42528]
[1745258232565,1.27831596,1576.1,1576.0,14.1564]
[1745258232869,0.00951596,1576.1,1576.0,15.42528]
[1745258233977,1.2685,1576.5,1576.3,1.26862]
[1745258234174,1.2685,1576.5,1576.4,1.7612]
[1745258234369,1.2685,1576.5,1576.4,8.106]
[1745258234869,6.2685,1576.5,1576.4,1.7612]
[1745258235067,7.32316307,1576.5,1576.3,0.00951596]
[1745258235274,1.2685,1576.5,1576.4,1.26856]
[1745258235473,1.27797596,1576.6,1576.4,9.37456]
[1745258235772,4.48571596,1576.6,1576.5,7.61328]
[1745258235961,4.48571596,1576.6,1576.5,8.106]
[1745258236160,4.48571596,1576.6,1576.5,14.252]
[1745258236372,4.48571596,1576.6,1576.5,15.52048]
[1745258237072,4.48571596,1576.6,1576.5,14.252]
[1745258237371,3.21731596,1576.6,1576.5,15.52048]
[1745258237560,4.48571596,1576.6,1576.5,15.52048]
[1745258237765,0.00951596,1576.6,1576.5,15.52048]
[1745258238577,1.26856,1576.4,1576.3,0.00951596]
[1745258238871,1.2688,1576.1,1576.0,2.54938404]
[1745258239874,1.2688,1576.1,1576.0,4.26368404]
[1745258242965,2.5891,1576.1,1576.0,2.54938404]
[1745258244275,7.70148485,1576.1,1576.0,2.54938404]
[1745258244474,7.70147968,1576.1,1576.0,2.54938404]
[1745258244676,14.96574864,1576.1,1576.0,1.05376404]
[1745258244975,1.26888,1576.0,1575.9,0.00951596]
[1745258245170,7.30704068,1576.0,1575.9,5.96e-06]
[1745258245373,19.57130964,1576.0,1575.9,5.96e-06]
[1745258245577,3.2078,1576.0,1575.9,1.26896596]
[1745258246075,4.47653,1576.2,1576.1,1.2688]
[1745258247079,1.2688,1576.1,1576.0,1.763]
[1745258247581,4.47658,1576.2,1576.1,1.2688]
[1745258247780,3.2078,1576.2,1576.1,1.2688]
[1745258247974,3.2078,1576.4,1576.0,1.763]
[1745258248279,1.27798596,1576.6,1576.5,1.26848]
[1745258248477,1.26852,1576.5,1576.4,1.2685]
[1745258248681,1.27796596,1576.6,1576.5,1.26848]
[1745258249071,1.27796596,1576.6,1576.5,7.41448]
[1745258249272,5.96e-06,1576.6,1576.5,7.41448]
[1745258249477,4.13849369,1577.0,1576.5,17.54648]
[1745258249674,1.26825,1576.8,1576.6,1.7687]
[1745258249874,1.26825,1576.8,1576.7,1.2683]
[1745258250076,1.2684,1576.6,1576.5,3.0881]
[1745258250277,1.26872,1576.2,1576.1,1.7687]
[1745258250473,1.26888,1576.0,1575.5,7.8546]
[1745258250673,4.47668,1576.0,1575.9,1.76870596]
[1745258252281,4.47668,1576.0,1575.9,3.03766596]
[1745258252472,4.47668,1576.0,1575.9,1.76870596]
[1745258252676,4.47668,1576.0,1575.9,3.03766596]
[1745258252876,4.47668,1576.0,1575.9,1.76870596]
[1745258253084,4.47668,1576.0,1575.9,7.91470596]
[1745258254183,4.47668,1576.0,1575.9,1.76870596]
[1745258255072,4.47668,1576.0,1575.9,7.91470596]
[1745258255884,4.47668,1576.0,1575.9,9.18366596]
[1745258256085,4.47668,1576.0,1575.9,7.91470596]
[1745258256685,3.2078,1576.0,1575.9,9.18366596]
[1745258257373,3.2078,1576.0,1575.9,10.54406596]
[1745258258392,3.2078,1576.1,1576.0,1.26885]
[1745258258684,4.47662,1576.1,1576.0,1.8]
[1745258260386,4.47662,1576.1,1576.0,3.06888]
[1745258260785,3.2078,1576.1,1576.0,3.06888]
[1745258261177,3.2078,1576.1,1576.0,9.21488]
[1745258261587,3.2078,1576.1,1576.0,10.49278]
[1745258261788,3.2078,1576.1,1576.0,11.84348]
[1745258262182,3.2078,1576.1,1576.0,16.84348]
[1745258262390,4.13849369,1576.2,1576.1,1.2688]
[1745258263291,4.13849369,1576.2,1576.1,2.9816]
[1745258264783,10.34623423,1576.2,1576.1,6.1894]
[1745258264981,10.34623423,1576.2,1576.1,11.1894]
[1745258265494,0.00951596,1576.3,1576.2,1.26872]
[1745258265682,8.27698739,1576.4,1576.3,1.26864]
[1745258265683,3.94977601,1576.4,1576.3,1.26864]
[1745258265890,2.36850216,1576.4,1576.2,3.05035]
[1745258266088,3.2078,1576.3,1576.2,46.946]
[1745258266394,4.47644,1576.3,1576.2,46.946]
[1745258266583,3.2078,1576.3,1576.2,46.946]
[1745258266986,3.2078,1576.3,1576.2,6.146]
[1745258267392,4.47644,1576.3,1576.2,6.146]
[1745258267588,3.2078,1576.3,1576.2,6.146]
[1745258268092,4.47644,1576.3,1576.2,6.146]
[1745258268892,4.47644,1576.3,1576.2,7.8757]
[1745258269292,4.47644,1576.3,1576.2,6.146]
[1745258269492,1.2688,1576.1,1576.0,3.0804]
[1745258269796,1.26888,1576.0,1575.9,5.96e-06]
[1745258269992,3.06008,1576.0,1575.9,5.96e-06]
[1745258270491,4.47666,1576.1,1575.9,1.26896596]
[1745258270688,1.26888,1576.0,1575.9,5.96e-06]
[1745258271188,1.26888,1576.0,1575.9,7.41496596]
[1745258272194,1.26888,1576.0,1575.9,6.14600596]
[1745258273091,1.26888,1576.0,1575.9,7.41496596]
[1745258273697,6.18396,1576.1,1576.0,1.26888]
[1745258273993,1.26888,1576.0,1575.9,6.14600596]
[1745258274189,1.26888,1576.0,1575.9,5.96e-06]
[1745258274789,3.01958,1576.0,1575.9,5.96e-06]
[1745258275188,3.01958,1576.0,1575.9,6.14600596]
[1745258277095,3.01958,1576.0,1575.9,7.41496596]
[1745258277294,13.55403424,1576.1,1576.0,1.26888]
[1745258277501,10.34623424,1576.1,1576.0,47.19688]
[1745258277696,1.26888,1576.0,1575.9,3.70800596]
[1745258277990,5.73198904,1576.0,1575.9,3.70800596]
[1745258278196,1.26922,1575.6,1575.5,1.26922]
[1745258278392,4.47702,1575.6,1575.5,1.26922]
[1745258278595,3.2078,1575.6,1575.5,1.26922]
[1745258279002,3.2078,1575.8,1575.7,1.26912]
[1745258279190,8.420949,1575.6,1575.5,4.49537]
[1745258279391,16.86861062,1575.6,1575.5,1.87825]
[1745258279593,16.86861062,1575.6,1575.5,0.49692]
[1745258279594,19.14056162,1575.6,1575.5,0.49692]
[1745258279993,19.14054078,1575.6,1575.5,0.49692]
[1745258280187,1.2696,1575.1,1574.9,54.75748424]
[1745258280387,3.2078,1575.1,1575.0,1.26968]
[1745258280588,0.00951596,1575.2,1575.1,1.2696]
[1745258280994,0.00951596,1575.2,1575.1,6.2696]
[1745258281202,3.2078,1575.3,1575.2,1.26952]
[1745258281401,3.2078,1575.3,1575.2,9.06912]
[1745258281698,16.72565424,1576.3,1575.2,16.0074]
[1745258281996,1.26893,1576.0,1575.8,1.26902]
[1745258282298,6.37983,1576.1,1575.8,1.3414]
[1745258282498,1.26904,1575.8,1575.7,7.42463596]
[1745258282802,1.26904,1575.8,1575.7,6.15551596]
[1745258283902,6.26904,1575.8,1575.7,2.9382]
[1745258284204,4.27114,1575.8,1575.7,0.00951596]
[1745258284406,4.3831887,1575.8,1575.7,0.00951596]
[1745258285094,9.3831887,1575.8,1575.7,5.96e-06]
[1745258285790,22.20442354,1575.8,1575.7,5.96e-06]
[1745258285995,22.09237484,1575.8,1575.7,5.96e-06]
[1745258286296,1.26976,1574.9,1574.8,1.3374]
[1745258286801,3.2078,1575.1,1574.8,1.3374]
[1745258287097,1.26976,1574.9,1574.8,1.3374]
[1745258287604,1.26976,1574.9,1574.8,2.60725]
[1745258287798,0.00951596,1575.0,1574.9,1.26976]
[1745258288095,0.00951596,1575.0,1574.8,1.3374]
[1745258288096,1.26976,1574.9,1574.8,1.3374]
[1745258288301,3.2078,1575.0,1574.9,1.26976]
[1745258288500,1.26968,1575.1,1574.9,1.26976]
[1745258288802,3.2078,1575.0,1574.9,1.26976]
[1745258289197,3.2078,1575.0,1574.1,6.38366]
[1745258289198,3.17464,1574.8,1574.1,6.38366]
[1745258289400,1.27009,1574.5,1574.3,1.27019]
[1745258289596,3.2078,1574.6,1574.1,48.52691]
[1745258289796,1.27007,1574.6,1574.3,1.27019]
[1745258290006,2.92405,1574.6,1574.4,1.8034]
[1745258290305,2.92405,1574.6,1574.5,1.27009]
[1745258290306,3.2078,1574.6,1574.5,1.27009]
[1745258290800,4.5301,1575.0,1574.5,11.9081]
[1745258291007,3.2078,1575.0,1574.6,10.5762]
[1745258291303,3.2078,1575.0,1574.9,1.26976]
[1745258291898,0.00951596,1575.1,1575.0,1.26968]
[1745258292104,0.00951596,1575.1,1575.0,10.53338]
[1745258292301,0.00951596,1575.1,1575.0,18.74118]
[1745258294506,4.5522,1575.6,1575.1,3.17398]
[1745258294694,3.2078,1575.6,1575.5,1.26928]
[1745258295301,3.2078,1575.6,1575.5,7.41528]
[1745258295507,10.42661545,1575.9,1575.8,1.26904]
[1745258296302,10.42661545,1575.9,1575.8,3.03994]
[1745258296500,10.42661545,1575.9,1575.8,4.31524]
[1745258296706,10.42661545,1575.9,1575.8,13.08704]
[1745258297309,1.86164737,1575.9,1575.8,18.08704]
[1745258298408,0.00951596,1576.0,1575.9,1.26896]
[1745258298608,0.00951596,1576.0,1575.9,3.05966]
[1745258299108,0.00951596,1576.0,1575.9,9.20566]
[1745258300602,0.00951596,1576.0,1575.9,14.20566]
[1745258301514,5.96e-06,1576.0,1575.9,14.20566]
[1745258301706,6.93661016,1576.1,1576.0,1.26888]
[1745258301908,5.46496016,1576.1,1576.0,6.30328]
[1745258302107,3.99199016,1576.4,1576.3,1.26864]
[1745258302308,3.99199016,1576.4,1576.3,6.83164]
[1745258302912,3.99199016,1576.4,1576.3,8.65824]
[1745258303416,3.99199016,1576.4,1576.3,6.83164]
[1745258303607,3.99199016,1576.4,1576.3,8.65824]
[1745258304506,3.99199016,1576.4,1576.3,3.09524]
[1745258305707,1.75591596,1576.5,1576.3,3.09524]
[1745258305708,1.75591596,1576.5,1576.4,1.26856]
[1745258305908,1.75591596,1576.5,1576.4,2.97166]
[1745258306109,1.75591596,1576.5,1576.4,9.11766]
[1745258307108,0.00951596,1576.5,1576.4,9.11766]
[1745258308513,0.00951596,1576.5,1576.4,12.32546]
[1745258309319,0.00951596,1576.5,1576.4,13.56786]
[1745258310019,0.00951596,1576.5,1576.4,10.36006]
[1745258310822,3.21731596,1576.5,1576.4,9.11766]
[1745258311116,1.73701596,1576.5,1576.4,9.11766]
[1745258311319,3.00549596,1576.5,1576.4,9.11766]
[1745258311509,1.73701596,1576.5,1576.4,9.11766]
[1745258311912,3.00549596,1576.5,1576.4,9.11766]
[1745258312220,1.73701596,1576.5,1576.4,9.11766]
[1745258312419,6.21329596,1576.5,1576.4,6.146]
[1745258313217,6.21329596,1576.5,1576.4,7.41456]
[1745258315808,6.21329596,1576.5,1576.4,6.146]
[1745258316616,1.26864,1576.3,1576.2,3.21731596]
[1745258317017,3.06264,1576.3,1576.2,0.00951596]
[1745258317219,3.06264,1576.3,1576.2,6.15551596]
[1745258317518,3.06264,1576.3,1576.2,7.42423596]
[1745258317719,3.06264,1576.3,1576.2,6.15551596]
[1745258317918,3.06264,1576.3,1576.2,7.42423596]
[1745258319618,3.06264,1576.3,1576.2,9.22933596]
[1745258320022,1.26862,1576.4,1576.3,1.26856]
[1745258320214,1.26862,1576.4,1576.3,3.07366]
[1745258320714,6.25794596,1576.5,1576.4,1.26856]
[1745258320916,6.25794596,1576.5,1576.4,3.07366]
[1745258321215,6.25794596,1576.5,1576.4,9.21966]
[1745258321816,6.25794596,1576.5,1576.4,7.9511]
[1745258322022,3.05014596,1576.5,1576.4,6.146]
[1745258322410,0.00951596,1576.5,1576.4,7.41456]
[1745258322615,1.27799596,1576.5,1576.4,9.21156]
[1745258323519,1.27799596,1576.5,1576.4,7.41456]
[1745258323822,6.15459596,1576.5,1576.4,6.146]
[1745258324025,4.88611596,1576.5,1576.4,7.41456]
[1745258324221,1.27799596,1576.5,1576.4,7.41456]
[1745258324722,1.27799596,1576.5,1576.4,9.21156]
[1745258325119,0.00951596,1576.5,1576.4,9.21156]
[1745258325318,1.26834,1576.7,1576.4,22.76836]
[1745258325618,3.2078,1576.8,1576.7,1.26831]
[1745258325921,5.77113,1577.0,1576.9,1.26815]
[1745258326116,5.77113,1577.0,1576.7,3.17079]
[1745258326117,1.26818,1576.9,1576.8,1.26819]
[1745258326312,1.26818,1576.9,1576.8,3.08799]
[1745258326518,1.26818,1576.9,1576.8,1.8198]
[1745258326719,1.26823,1576.8,1576.7,12.7623]
[1745258326917,1.6774,1576.9,1576.8,1.26819]
[1745258326918,1.26819,1576.9,1576.8,1.26819]
[1745258327117,2.94559,1576.9,1576.8,3.08799]
[1745258327428,1.26823,1576.8,1576.7,6.146]
[1745258327611,1.26822,1576.9,1576.8,1.26823]
[1745258327812,1.26815,1576.9,1576.8,1.8198]
[1745258328012,6.18991596,1577.0,1576.8,1.8198]
[1745258328212,1.7459,1576.9,1576.8,3.08798]
[1745258328623,5.78063596,1577.0,1576.9,1.26815]
[1745258328925,3.05061596,1577.0,1576.9,3.06415]
[1745258329224,3.05061596,1577.0,1576.9,9.21015]
[1745258329225,0.00951596,1577.0,1576.9,9.21015]
[1745258329415,4.62888,1577.1,1577.0,1.26807]
[1745258329619,4.62888,1577.1,1577.0,3.06407]
[1745258330019,6.22639401,1577.3,1577.2,1.26791]
[1745258330221,6.22639401,1577.3,1577.2,7.41391]
[1745258330424,7.49422401,1577.3,1577.2,7.41391]
[1745258330626,7.49422401,1577.3,1577.2,6.146]
[1745258331024,9.24012401,1577.3,1577.2,7.942]
[1745258331225,6.22639401,1577.3,1577.2,3.06391]
[1745258331419,7.49422401,1577.3,1577.2,1.796]
[1745258332532,1.26783,1577.3,1577.2,1.796]
[1745258332731,1.26783,1577.3,1577.2,3.06391]
[1745258332931,3.05562596,1577.4,1577.2,1.796]
[1745258333127,3.05562596,1577.4,1577.3,1.26783]
[1745258333431,1.78781596,1577.4,1577.3,1.26783]
[1745258333631,3.05556596,1577.4,1577.3,1.26783]
[1745258333931,1.78781596,1577.4,1577.3,1.26783]
[1745258334525,0.00951596,1577.4,1577.3,1.26783]
[1745258334821,6.22639401,1577.8,1577.5,1.26767]
[1745258335025,6.22639401,1577.8,1577.7,4.47531]
[1745258335531,4.72830593,1577.8,1577.7,13.58301]
[1745258335731,4.72830593,1577.8,1577.7,54.38301]
[1745258336832,4.72830593,1577.8,1577.7,48.6093]
[1745258337036,4.72830593,1577.8,1577.7,9.07681]
[1745258337234,4.72830593,1577.8,1577.7,2.93081]
[1745258337436,5.99573593,1577.8,1577.7,1.6633]
[1745258337622,6.10980593,1577.8,1577.7,1.6633]
[1745258337829,1.3815,1577.8,1577.7,2.93081]
[1745258338029,2.64893,1577.8,1577.7,2.93081]
[1745258338235,1.7908,1577.8,1577.7,2.93081]
[1745258338432,3.05823,1577.8,1577.7,2.93081]
[1745258338735,1.27365064,1577.9,1577.7,2.93081]
[1745258338935,3.06445064,1577.9,1577.8,1.6522]
[1745258339138,3.06439064,1577.9,1577.8,1.6522]
[1745258339636,1.27359064,1577.9,1577.8,1.6522]
[1745258340328,3.02229064,1577.9,1577.8,1.6522]
[1745258341735,1.26751,1577.7,1577.6,3.2078]
[1745258341935,4.9565,1577.8,1577.6,1.26759]
[1745258342136,3.01627,1577.7,1577.6,1.26759]
[1745258342335,1.26759,1577.6,1577.5,8.27543]
[1745258342536,3.01629,1577.6,1577.5,7.0078]
[1745258342733,3.01629,1577.6,1577.5,2.93047]
[1745258343039,1.26767,1577.5,1577.4,1.2677]
[1745258343240,4.27377,1577.5,1577.4,1.2677]
[1745258343435,1.26775,1577.4,1577.3,2.93057]
[1745258343642,1.655,1577.4,1577.3,2.93057]
[1745258344843,2.92275,1577.4,1577.3,2.93057]
[1745258345143,2.52514,1577.5,1577.4,1.26775]
[1745258345336,4.18014,1577.5,1577.4,1.77]
[1745258345536,4.18014,1577.5,1577.4,3.03775]
[1745258345845,4.18014,1577.5,1577.4,1.77]
[1745258346848,2.9124,1577.5,1577.2,6.61285]
[1745258347049,1.26783,1577.3,1577.2,8.40155]
[1745258347247,2.99038,1577.4,1577.3,1.26783]
[1745258347450,2.99038,1577.4,1577.3,3.05653]
[1745258348555,2.99035,1577.4,1577.3,3.05653]
[1745258349150,2.52514,1577.5,1577.4,1.26775]
[1745258349349,2.52514,1577.5,1577.4,3.05645]
[1745258349547,1.26785,1577.4,1577.3,1.26782]
[1745258349849,1.26791,1577.2,1577.1,0.00951596]
[1745258350043,4.47571,1577.2,1577.1,0.00951596]
[1745258350243,9.47571,1577.2,1577.1,0.00951596]
[1745258350640,1.26823,1576.8,1576.7,4.47606]
[1745258350844,1.26823,1576.8,1576.7,4.9767]
[1745258351051,1.26823,1576.8,1576.7,6.24501]
[1745258351250,1.26823,1576.8,1576.7,12.39101]
[1745258351450,3.04011,1576.9,1576.8,1.26823]
[1745258351650,1.26813,1577.0,1576.9,1.26815]
[1745258351854,1.26815,1576.9,1576.8,3.03706]
[1745258352346,1.26815,1576.9,1576.8,1.7689]
[1745258352754,1.26815,1576.9,1576.8,3.03713]
[1745258352957,3.04952596,1577.0,1576.9,1.26815]
[1745258353148,3.04952596,1577.0,1576.9,9.14015]
[1745258353149,1.27758596,1577.0,1576.9,9.14015]
[1745258353345,0.00951596,1577.0,1576.9,6.146]
[1745258353545,1.27758596,1577.0,1576.9,7.41415]
[1745258355049,0.00951596,1577.0,1576.9,7.41415]
[1745258355255,0.00951596,1577.0,1576.9,18.14985]
[1745258355758,1.26786,1577.3,1577.2,1.26791]
[1745258356052,12.59651052,1577.4,1577.3,1.26783]
[1745258356456,12.59651052,1577.4,1577.3,3.01213]
[1745258357054,1.64544064,1577.5,1577.4,1.26775]
[1745258357254,1.27395064,1577.5,1577.4,3.01205]
[1745258357956,1.27391064,1577.5,1577.4,3.01205]
[1745258358155,0.00624064,1577.5,1577.4,9.15805]
[1745258358360,1.27391064,1577.5,1577.4,6.146]
[1745258358563,2.95171064,1577.5,1577.4,6.146]
[1745258358761,4.53391064,1577.5,1577.4,6.146]
[1745258359163,1.26783,1577.3,1577.2,6.146]
[1745258359464,1.26783,1577.3,1577.2,7.41391]
[1745258359664,1.26783,1577.3,1577.2,7.9712]
[1745258359959,1.26783,1577.3,1577.2,9.23911]
[1745258360157,1.26783,1577.3,1577.2,7.9712]
[1745258360567,1.26783,1577.3,1577.2,9.23911]
[1745258361162,1.26783,1577.3,1577.2,7.9712]
[1745258361661,1.26783,1577.3,1577.2,6.146]
[1745258361861,2.91473,1577.3,1577.2,6.146]
[1745258362163,1.26791,1577.2,1577.1,2.97693]
[1745258362756,1.26789,1577.3,1577.2,1.26791]
[1745258363053,4.75770064,1577.5,1577.2,1.26791]
[1745258363054,1.26781,1577.4,1577.3,1.26777]
[1745258363251,1.26781,1577.4,1577.3,2.97677]
[1745258363463,1.26775,1577.4,1577.3,2.97675]
[1745258364357,1.26775,1577.4,1577.3,1.709]
[1745258364559,9.56795052,1577.4,1577.3,1.709]
[1745258364866,9.56795052,1577.4,1577.3,2.97683]
[1745258367469,8.30020052,1577.4,1577.3,2.97683]
[1745258367664,8.30644116,1577.5,1577.4,1.26775]
[1745258367964,8.30644116,1577.5,1577.4,11.31685]
[1745258368172,8.30644116,1577.5,1577.4,22.46285]
[1745258369469,10.39086656,1577.6,1577.5,1.26767]
[1745258369673,1.26719,1578.1,1578.0,1.26722]
[1745258370075,1.26719,1578.1,1578.0,1.26721]
[1745258370268,20.74755292,1578.2,1578.1,1.26719]
[1745258370470,16.27258292,1578.2,1578.1,4.47499]
[1745258370961,16.27258292,1578.2,1578.1,9.47499]
[1745258371560,14.59726164,1578.4,1578.3,1.26703]
[1745258371561,12.51193855,1578.4,1578.3,1.26703]
[1745258371764,12.50267827,1578.4,1578.3,9.64583]
[1745258372671,12.50267827,1578.4,1578.3,11.29793]
[1745258372868,12.50267827,1578.4,1578.3,19.51093]
[1745258374569,12.50267827,1578.4,1578.3,14.51093]
[1745258375166,12.50267827,1578.4,1578.3,19.51093]
[1745258375576,3.2078,1578.9,1578.7,1.26663]
[1745258375768,3.2078,1578.9,1578.8,1.26663]
[1745258376174,1.5889,1579.0,1578.8,1.26663]
[1745258376375,2.85539,1579.0,1578.8,1.26663]
[1745258376671,1.5889,1579.0,1578.7,1.6825]
[1745258377072,1.5889,1579.0,1578.9,1.26655]
[1745258377377,2.85538,1579.0,1578.8,1.26659]
[1745258377673,2.85538,1579.0,1578.8,1.27610596]
[1745258378274,1.5889,1579.0,1578.9,1.26655]
[1745258378578,2.85537,1579.0,1578.9,1.26655]
[1745258378870,1.5889,1579.0,1578.9,1.26655]
[1745258379172,1.5889,1579.0,1578.9,10.62035]
[1745258379775,3.2078,1579.4,1578.9,9.3538]
[1745258379977,3.2725,1579.3,1579.2,1.26631]
[1745258380179,4.53875,1579.3,1579.1,1.26632]
[1745258380378,3.2078,1579.2,1578.9,5.136]
[1745258380678,3.2078,1579.2,1578.9,1.26653]
[1745258381678,1.26655,1578.9,1578.8,0.00951596]
[1745258381878,1.26655,1578.9,1578.8,1.26688568]
[1745258382475,1.26655,1578.9,1578.8,0.00025568]
[1745258382773,1.26655,1578.9,1578.8,1.26688568]
[1745258382970,6.26655,1578.9,1578.8,0.00025568]
[1745258383372,9.59930016,1578.9,1578.8,0.00025568]
[1745258383878,3.16697,1578.7,1578.2,3.2078]
[1745258384176,1.26695,1578.4,1578.3,1.26695]
[1745258384370,1.26705,1578.3,1578.2,1.26708]
[1745258384566,3.2078,1578.5,1578.1,1.8132]
[1745258384770,2.92338,1578.4,1578.3,1.26697]
[1745258385069,1.26703,1578.3,1578.2,1.27657596]
[1745258385479,2.9234,1578.4,1578.3,1.26703]
[1745258385679,1.26703,1578.3,1578.2,1.27657596]
[1745258386573,2.92343,1578.4,1578.3,1.26703]
[1745258386977,1.26703,1578.3,1578.2,3.00185596]
[1745258387789,3.2078,1578.7,1578.2,3.00185596]
[1745258387790,3.2078,1578.9,1578.4,3.16737]
[1745258387969,1.70286027,1579.0,1578.9,1.26655]
[1745258388175,2.96933027,1579.0,1578.9,1.26655]
[1745258388579,1.70286027,1579.0,1578.9,1.26655]
[1745258388972,1.70286027,1579.0,1578.9,2.99185]
[1745258389169,1.70286027,1579.0,1578.9,9.13785]
[1745258389373,0.00926027,1579.0,1578.9,9.13785]
[1745258391180,1.83446027,1579.0,1578.9,9.13785]
[1745258392084,1.83446027,1579.0,1578.9,2.99185]
[1745258393978,6.83446027,1579.0,1578.8,1.26657]
[1745258394180,4.861,1578.9,1578.8,1.26663]
[1745258394386,6.5555,1578.9,1578.8,1.26663]
[1745258398687,3.3477,1578.9,1578.8,1.26663]
[1745258398886,1.6532,1578.9,1578.8,1.26663]
[1745258399285,0.00926027,1579.0,1578.9,1.26655]
[1745258399590,2.7e-07,1579.0,1578.9,9.60835]
[1745258399785,2.7e-07,1579.0,1578.9,16.26465]
[1745258400089,2.7e-07,1579.0,1578.9,22.41065]
[1745258400677,2.7e-07,1579.0,1578.9,17.41065]
[1745258400880,2.7e-07,1579.0,1578.9,9.06885]
[1745258401082,2.7e-07,1579.0,1578.9,2.92285]